[Event "Polish Youth Ekstraliga 2022"]
[Site "Lublin"]
[Date "2022.06.25"]
[Round "1.19"]
[White "Dzida, Kamil"]
[Black "Ciborowski, Konrad Jr"]
[Result "1-0"]
[ECO "C18"]
[WhiteElo "2294"]
[BlackElo "1927"]
[Annotator "TA"]
[PlyCount "129"]
[EventDate "2022.06.24"]
[EventType "team-tourn"]
[EventCountry "POL"]
[SourceTitle "playchess.com"]
[Source "ChessBase"]
[SourceQuality "1"]
[TimeControl "40/5400+30:1800+30"]

{[%evp 16,129,20,2,7,0,0,0,0,0,0,0,0,0,0,0,0,0,0,-18,47,0,65,0,13,-10,56,-32,-15,-15,-6,-18,-24,-70,-61,-66,-61,-79,0,0,7,7,7,7,7,0,0,0,0,0,0,0,0,0,0,0,0,0,0,0,36,23,25,0,63,14,14,0,64,0,68,0,0,0,0,6,37,-14,1,18,66,54,31,41,162,162,162,162,194,194,190,157,291,225,284,276,322,242,512,470,575,567,508,272,274,285,272,268,602,575,1682,1712,1447,1337,1081,983]} 1. e4 {[%emt 0:00:02]} e6 {[%emt 0:00:04]} 2. d4 {[%emt 0:00:06]} d5 {[%emt 0:00:03]} 3. Nc3 {[%emt 0:00:07]} Bb4 {[%emt 0:00:04]} 4. e5 {[%emt 0:00:05]} c5 {[%emt 0:00:02]} 5. a3 {[%emt 0:00:06]} Bxc3+ {[%emt 0:00:04]} 6. bxc3 {[%emt 0:00:09]} Qa5 {[%emt 0:00:03]} 7. Bd2 {[%emt 0:00:10]} Qa4 {[%emt 0:00:04]} 8. Qb1 {[%emt 0:00:08]} c4 {[%emt 0:03:52]} 9. h4 {[%emt 0:00:06]} Nc6 {[%emt 0:00:08] C18: French: 3 Nc3 Bb4: Main line: 7 h4 and 7 Qg4.} 10. h5 {[%emt 0:00:06]} h6 {[%emt 0:00:03]} 11. g3 {[%emt 0:00:07]} Nge7 {[%emt 0:00:06] The position is equal.} 12. Bh3 {[%emt 0:00:28]} Bd7 {[%emt 0:00:12]} 13. Ne2 {[%emt 0:00:06][%cal Bg1e2,Be2f4,Bf4g2,Bg2e3,Be3g4][%mdl 32]} (13. Qxb7 Rb8 14. Qc7 Qxc2 $19) 13... O-O-O {[%emt 0:00:19]} 14. O-O {[%emt 0:00:08]} Rdg8 {[%emt 0:09:12]} 15. Nf4 {[%emt 0:00:19]} b6 {[%emt 0:03:39]} 16. Ng2 {[%emt 0:03:26] [#]} Kb7 $146 {[%emt 0:02:32]} ({Predecessor:} 16... g6 17. hxg6 fxg6 18. Ne3 h5 19. Qd1 Nf5 20. Nxf5 gxf5 21. Kh2 Be8 22. Qc1 h4 {½-½ (43) Stergiou,G (1864)-Falchi,C (1852) Milan 2015}) 17. Ne3 {[%emt 0:00:07]} Nd8 {[%emt 0:03:49]} (17... f6 $11) 18. Kh2 {[%emt 0:01:32]} (18. Qb4 $14 Qxb4 19. cxb4) 18... Rf8 {[%emt 0:05:36]} (18... Ndc6 $11) 19. f4 {[%emt 0:02:51]} (19. Qb4 $14 Qxb4 20. cxb4) 19... g6 {[%emt 0:01:39]} 20. Ng4 {[%emt 0:01:21]} Ng8 {[%emt 0:00:42]} (20... Ndc6 $11) 21. Qd1 {[%emt 0:02:41]} (21. Qb4 $1 $14 Re8 22. Ne3) 21... Nc6 {[%emt 0:06:40][%cal Bd8c6,Bc6e7,Be7f5,Bf5e3][%mdl 32]} 22. Ne3 {[%emt 0:02:55] aiming for Nxd5.} Nce7 {[%emt 0:16:30]} 23. Qe2 {[%emt 0:09:40]} (23. Qb1 {is more complex.} Nf5 24. Qb4 Nge7 25. g4) 23... Nf5 {[%emt 0:01:05]} 24. g4 {[%emt 0:07:01]} (24. Rfb1 $11) 24... Nxe3 $15 {[%emt 0:00:13]} 25. Bxe3 {[%emt 0:00:04]} Ne7 {[%emt 0:04:40] Against f5} 26. Bf2 {[%emt 0:04:17]} Rh7 {[%emt 0:10:07]} (26... gxh5 $17 27. Bh4 Re8) 27. Bh4 $11 {[%emt 0:02:04]} Ng8 {[%emt 0:07:08]} 28. f5 {[%emt 0:03:35]} g5 {[%emt 0:01:18] [#] Strongly threatening ...exf5.} 29. Bg3 {[%emt 0:01:06]} Ne7 {[%emt 0:01:17]} 30. fxe6 {[%emt 0:07:46]} Bxe6 {[%emt 0:00:12]} 31. Rf6 {[%emt 0:00:08]} Ng8 {[%emt 0:01:37]} 32. Rf2 {[%emt 0:00:36]} Rc8 {[%emt 0:06:59]} 33. Qd2 {[%emt 0:02:40]} Qd7 {[%emt 0:03:02]} 34. Qe2 {[%emt 0:02:33]} Qa4 {[%emt 0:00:03]} 35. Bg2 {[%emt 0:02:58]} Rg7 {[%emt 0:05:27]} 36. Kh3 {[%emt 0:01:49]} Rc7 {[%emt 0:01:04]} 37. Rff1 {[%emt 0:02:47]} Kc8 {[%emt 0:03:00]} 38. Bf3 {[%emt 0:01:53]} Re7 {[%emt 0:02:34]} 39. Qg2 {[%emt 0:02:44]} Qd7 {[%emt 0:02:51]} ({Better is} 39... Rd7 $11) 40. Be2 {[%emt 0:00:00]} (40. a4 $14) 40... Qa4 $1 {[%emt 0:00:00]} 41. Bf3 {[%emt 0:05:10]} (41. Rf2 $11) 41... Qd7 $14 {[%emt 0:02:08]} 42. Bd1 {[%emt 0:00:01]} (42. a4 $14) 42... Qb5 {[%emt 0:11:22]} ({Black should try} 42... Qa4 $11) 43. Qd2 {[%emt 0:00:44]} ({White should play} 43. a4 $14 Qa5 44. Qf3) 43... Qa4 $11 {[%emt 0:03:38]} 44. Qc1 {[%emt 0:00:12]} Re8 {[%emt 0:02:14][%cal Of7f6]} 45. Qb2 {[%emt 0:01:25]} Rf8 {[%emt 0:01:36]} (45... f6 $5) 46. Re1 {[%emt 0:05:00]} (46. Qb4 $14 Qxb4 47. axb4) 46... Re8 {[%emt 0:02:50]} 47. Qb4 $36 {[%emt 0:00:52][%mdl 2048] White is pushing.} Qxb4 {[%emt 0:00:03]} (47... Qc6 $11 {deserves consideration.}) 48. cxb4 {[%emt 0:00:18][%cal Bc3b4,Bb4b5][%mdl 32]} (48. axb4 $5 {[%cal Ra1a7]} Kb7 49. b5 $14) 48... a6 {[%emt 0:04:26]} 49. c3 {[%emt 0:00:27]} Rd8 {[%emt 0:00:29] This costs Black the game.} (49... f5 $14) 50. Bc2 $18 {[%emt 0:00:26]} Kd7 {[%emt 0:00:07]} 51. Rf1 {[%emt 0:01:29]} Rc8 {[%emt 0:00:54]} 52. a4 {[%emt 0:00:16]} Ra8 {[%emt 0:00:31]} 53. b5 {[%emt 0:00:10]} (53. a5 b5 54. Rf2 Ne7 $16) 53... a5 {[%emt 0:00:03]} (53... Ne7 $16 54. bxa6 Rxa6) 54. Be1 {[%emt 0:00:20][%cal Bg3e1,Be1d2,Bd2c1][%mdl 32]} Rc8 {[%emt 0:01:25]} 55. Bd2 {[%emt 0:00:10]} f6 {[%emt 0:07:02]} 56. Rae1 {[%emt 0:00:07]} ({Less strong is} 56. exf6 Rf7 $16) 56... Rf8 {[%emt 0:00:51]} (56... Rf7 57. Bc1 Rcf8) 57. Bc1 {[%emt 0:00:06]} Re8 {[%emt 0:00:46]} 58. exf6 {[%emt 0:01:00]} Nxf6 {[%emt 0:00:14]} 59. Kg3 {[%emt 0:03:13]} Ne4+ {[%emt 0:00:49]} 60. Bxe4 {[%emt 0:00:17]} dxe4 {[%emt 0:00:04]} 61. Rxe4 {[%emt 0:00:08] Threatens to win with Rf6.} ({Not} 61. Rf6 Rf7 62. Rxf7+ (62. Rxh6 Rf3+ 63. Kh2 Rxc3 $11) 62... Bxf7 $16) 61... Ree7 $2 {[%emt 0:00:54]} (61... Rf7 62. Rfe1 Rf6) 62. Rf6 {[%emt 0:02:55] Black must now prevent Ba3. White is clearly winning.} Rgf7 {[%emt 0:00:29] [#]} 63. Rexe6 {[%emt 0:00:12][%mdl 512]} Rxf6 {[%emt 0:00:15]} 64. Rxf6 {[%emt 0:00:04]} Re1 {[%emt 0:00:03]} 65. Bd2 {[%emt 0:00:20] Weighted Error Value: White=0.22 (precise) /Black=0.35} 1-0

[Event "Polish Youth Ekstraliga 2022"]
[Site "Lublin"]
[Date "2022.06.25"]
[Round "1.20"]
[White "Wydmanski, Szymon"]
[Black "Koziorowicz, Michal"]
[Result "0-1"]
[ECO "B43"]
[WhiteElo "1815"]
[BlackElo "2231"]
[Annotator "TA"]
[PlyCount "72"]
[EventDate "2022.06.24"]
[EventType "team-tourn"]
[EventCountry "POL"]
[SourceTitle "playchess.com"]
[Source "ChessBase"]
[SourceQuality "1"]
[TimeControl "40/5400+30:1800+30"]

{[%evp 18,72,-22,-48,-39,-40,-27,-27,-31,-39,-16,-26,-29,-52,-28,-20,-23,-14,-19,-12,-14,-75,-69,-510,-506,-593,-381,-395,-393,-684,-531,-517,-517,-524,-516,-506,-482,-511,-456,-475,-497,-502,-487,-421,-412,-456,-437,-495,-481,-1855,-1657,-11005,-6147,-29967,-29966,-5397,-1402]} 1. e4 {[%emt 0:00:03]} c5 {[%emt 0:00:37]} 2. Nf3 {[%emt 0:00:04]} e6 {[%emt 0:00:45]} 3. d4 {[%emt 0:00:06]} cxd4 {[%emt 0:00:07]} 4. Nxd4 {[%emt 0:00:02]} a6 {[%emt 0:00:32]} 5. Nc3 {[%emt 0:01:00]} b5 {[%emt 0:00:39]} 6. a3 {[%emt 0:04:20]} Qc7 {[%emt 0:01:43]} 7. Be2 {[%emt 0:04:28]} Nf6 {[%emt 0:01:13]} 8. O-O {[%emt 0:14:13]} Bb7 {[%emt 0:06:03]} 9. Bf3 {[%emt 0:01:47]} d6 {[%emt 0:07:01]} 10. g3 {[%emt 0:11:53]} Nbd7 {[%emt 0:00:30][%cal Bb8d7,Bd7c5,Bc5e4,Be4d6,Bd6c4][%mdl 32] B43: Sicilian: Kan Variation: 5 Nc3.} 11. Bg2 {[%emt 0:00:30]} Be7 {[%emt 0:00:30]} 12. f4 {[%emt 0:00:30]} O-O {[%emt 0:00:30] Black has an edge.} 13. g4 {[%emt 0:00:30]} Nc5 {[%emt 0:00:30]} 14. Qe2 {[%emt 0:00:30]} d5 {[%emt 0:00:30][%cal Rf6e4] [#]} 15. exd5 $146 {[%emt 0:00:30]} ({Predecessor:} 15. e5 Nfe4 16. Nxe4 Nxe4 17. c3 f6 18. Be3 Qd7 19. f5 Nc5 20. Bf4 fxe5 21. Bxe5 exf5 22. Nxf5 {1-0 (49) Barhudarian,R (2216)-Fedoseev,V (2310) St Petersburg 2006}) 15... exd5 {[%emt 0:00:30]} 16. g5 {[%emt 0:00:30]} Nfe4 {[%emt 0:00:30]} 17. Nxe4 {[%emt 0:00:30]} Nxe4 {[%emt 0:00:30]} 18. Be3 {[%emt 0:00:30]} Bc5 {[%emt 0:00:30]} 19. Nf5 {[%emt 0:00:30]} (19. Bxe4 $11 dxe4 20. c3) 19... Rfe8 {[%emt 0:00:30] And now ...Nd6 would win.} (19... Rae8 $5 {[%cal Re4d6]} 20. Rae1 Bc8 21. Bxc5 Qxc5+ 22. Ne3 d4 $19) 20. Rad1 $2 {[%emt 0:00:30][%mdl 8192] [#] Loses the game.} ({White should try} 20. Qd3 $15) 20... Nd6 $1 $19 {[%emt 0:00:30]} 21. Nd4 {[%emt 0:00:30]} Nc4 {[%emt 0:00:30]} 22. Rf3 {[%emt 0:00:30]} Nxb2 {[%emt 0:00:30]} ({Stronger than} 22... Nxe3 23. Rxe3 Bxd4 24. Rxd4 Rxe3 25. Qxe3 $15) 23. Rh3 $2 {[%emt 0:00:30]} (23. f5) 23... Nxd1 {[%emt 0:00:30]} 24. Qxd1 {[%emt 0:00:30] [#]} Rxe3 $1 {[%emt 0:00:30]} 25. Rxe3 {[%emt 0:00:30]} Qxf4 {[%emt 0:00:30]} 26. Rd3 {[%emt 0:00:30]} Qxg5 {[%emt 0:55:34]} 27. Kh1 {[%emt 0:52:56]} Bxd4 {[%emt 0:00:36]} 28. Rxd4 {[%emt 0:00:06]} Re8 {[%emt 0:01:01]} 29. Bxd5 {[%emt 0:01:58]} Bxd5+ {[%emt 0:01:33]} 30. Rxd5 {[%emt 0:00:05][%mdl 4096] Endgame KQR-KQR} Qh4 {[%emt 0:00:23]} 31. Kg2 {[%emt 0:02:19]} Qe4+ {[%emt 0:00:46]} 32. Kf2 {[%emt 0:01:18]} h6 {[%emt 0:00:19] ...Qe3+ is the strong threat.} 33. Qd2 {[%emt 0:01:08]} (33. Rd3 $142) 33... Re6 {[%emt 0:01:07]} 34. Rd8+ {[%emt 0:00:28]} Kh7 {[%emt 0:00:02] ( -> ...Qf5+)} 35. Rd4 {[%emt 0:00:28]} Rf6+ {[%emt 0:00:25]} 36. Kg1 {[%emt 0:00:04]} Rg6+ {[%emt 0:00:06] Weighted Error Value: White=1.38/Black=0.21 (precise)} 0-1

[Event "Polish Youth Ekstraliga 2022"]
[Site "Lublin"]
[Date "2022.06.25"]
[Round "1.21"]
[White "Raczek, Krzysztof"]
[Black "Wolak, Maciej"]
[Result "1-0"]
[ECO "A06"]
[WhiteElo "2114"]
[BlackElo "1316"]
[Annotator "RC"]
[PlyCount "69"]
[EventDate "2022.06.24"]
[EventType "team-tourn"]
[EventCountry "POL"]
[SourceTitle "playchess.com"]
[Source "ChessBase"]
[SourceQuality "1"]
[TimeControl "40/5400+30:1800+30"]

1. Nf3 {[%emt 0:00:02]} d5 {[%emt 0:00:13]} 2. b3 {[%emt 0:00:02]} Nf6 {[%emt 0:02:46]} 3. Bb2 {[%emt 0:00:02]} e6 {[%emt 0:03:22]} 4. e3 {[%emt 0:01:28]} Be7 {[%emt 0:03:27]} 5. c4 {[%emt 0:02:16]} c6 {[%emt 0:02:34]} 6. d4 {[%emt 0:06:34]} O-O {[%emt 0:04:15]} 7. Bd3 {[%emt 0:01:36]} Nbd7 {[%emt 0:08:37]} 8. O-O {[%emt 0:01:27]} b6 {[%emt 0:04:53]} 9. Nbd2 {[%emt 0:00:53]} Bb7 {[%emt 0:00:42]} 10. Qe2 {[%emt 0:02:44]} Rc8 {[%emt 0:01:45]} 11. cxd5 {[%emt 0:12:13]} cxd5 {[%emt 0:00:55]} 12. Ne5 {[%emt 0:06:08]} Nxe5 13. dxe5 Ne4 {[%emt 0:10:58]} 14. Nxe4 {[%emt 0:10:00]} dxe4 {[%emt 0:00:15]} 15. Bb5 {[%emt 0:00:02]} Bc6 {[%emt 0:17:29]} 16. Ba6 {[%emt 0:02:19]} Rc7 {[%emt 0:00:36]} 17. Rfd1 {[%emt 0:04:00]} Qb8 {[%emt 0:01:19]} 18. Rac1 {[%emt 0:07:16]} Rd8 {[%emt 0:07:37]} 19. Rxd8+ {[%emt 0:11:57]} Qxd8 {[%emt 0:00:09]} 20. Rd1 {[%emt 0:09:25]} Rd7 {[%emt 0:00:29]} 21. Rxd7 {[%emt 0:00:41]} Qxd7 {[%emt 0:00:14]} 22. Bd4 {[%emt 0:00:27]} f6 {[%emt 0:14:18]} 23. exf6 {[%emt 0:10:11]} Bxf6 {[%emt 0:00:24]} 24. Bxf6 {[%emt 0:00:09]} gxf6 {[%emt 0:00:05]} 25. Qg4+ {[%emt 0:00:29]} Kf7 {[%emt 0:00:51]} 26. Bf1 {[%emt 0:02:54]} Qd2 27. h4 f5 {[%emt 0:12:08]} 28. Qh5+ {[%emt 0:00:33]} Kg7 {[%emt 0:00:26]} 29. Qg5+ {[%emt 0:00:05]} Kf7 30. Qh6 Qd1 {[%emt 0:02:12]} 31. Qxh7+ {[%emt 0:00:39]} Kf8 {[%emt 0:01:33]} 32. Qh8+ {[%emt 0:00:53]} Ke7 {[%emt 0:00:57]} 33. Qe5 {[%emt 0:00:13]} Kf7 {[%emt 0:00:57]} 34. h5 {[%emt 0:01:10]} Qd8 {[%emt 0:00:31]} 35. h6 {[%emt 0:00:15]} 1-0

[Event "Polish Youth Ekstraliga 2022"]
[Site "Lublin"]
[Date "2022.06.25"]
[Round "1.22"]
[White "Kania, Franciszek"]
[Black "Grzebieniowski, Michal"]
[Result "1-0"]
[ECO "B15"]
[WhiteElo "1523"]
[BlackElo "1635"]
[Annotator "NA RC"]
[PlyCount "89"]
[EventDate "2022.06.24"]
[EventType "team-tourn"]
[EventCountry "POL"]
[SourceTitle "playchess.com"]
[Source "ChessBase"]
[SourceQuality "1"]
[TimeControl "40/5400+30:1800+30"]

1. e4 {[%emt 0:00:04]} c6 {[%emt 0:00:21]} 2. d4 {[%emt 0:00:21]} d5 {[%emt 0:00:04]} 3. Nc3 {[%emt 0:00:21]} dxe4 {[%emt 0:00:20]} 4. Nxe4 {[%emt 0:00:12]} Nf6 {[%emt 0:01:08]} 5. Nxf6+ {[%emt 0:00:17]} exf6 {[%emt 0:00:03]} 6. Be3 {[%emt 0:01:24]} Bd6 {[%emt 0:00:41]} 7. Bd3 {[%emt 0:01:56]} O-O {[%emt 0:01:06]} 8. Qd2 {[%emt 0:00:11]} Be6 {[%emt 0:00:17]} 9. Ne2 {[%emt 0:02:06]} Re8 {[%emt 0:02:16]} 10. O-O {[%emt 0:01:29]} Qd7 {[%emt 0:03:23]} 11. Ng3 {[%emt 0:02:55]} Qc7 {[%emt 0:04:29]} 12. c4 {[%emt 0:02:34]} Nd7 {[%emt 0:00:36]} 13. f4 {[%emt 0:06:37]} Nf8 {[%emt 0:03:31]} 14. c5 {[%emt 0:05:54]} Be7 {[%emt 0:00:14]} 15. f5 {[%emt 0:01:07]} Bd5 {[%emt 0:00:37]} 16. Nh5 {[%emt 0:01:51]} Qd8 {[%emt 0:08:26]} 17. Bh6 {[%emt 0:04:04]} g6 {[%emt 0:00:30]} 18. Ng7 {[%emt 0:01:17]} Qd7 {[%emt 0:03:54]} 19. Nxe8 {[%emt 0:00:14]} Rxe8 {[%emt 0:00:05]} 20. Bxf8 {[%emt 0:01:57]} Bxf8 {[%emt 0:03:00]} 21. Rfe1 {[%emt 0:20:52]} Rxe1+ {[%emt 0:04:26]} 22. Rxe1 {[%emt 0:01:59]} Bxa2 {[%emt 0:00:53]} 23. Qe3 {[%emt 0:05:55]} a6 {[%emt 0:03:41]} 24. Bc2 {[%emt 0:06:26]} Bd5 {[%emt 0:03:12]} 25. Be4 {[%emt 0:01:45]} Qd8 {[%emt 0:08:20]} 26. Bxd5 {[%emt 0:00:46]} Qxd5 {[%emt 0:00:02]} 27. Qe4 {[%emt 0:03:13]} Qc4 {[%emt 0:00:14]} 28. Qe3 {[%emt 0:07:52]} Qd5 {[%emt 0:00:41]} 29. Rf1 {[%emt 0:01:06]} Kg7 {[%emt 0:11:08]} 30. Qf4 {[%emt 0:02:56]} Be7 {[%emt 0:01:36]} 31. Re1 {[%emt 0:00:55]} Bf8 {[%emt 0:05:58]} 32. Re8 {[%emt 0:01:42]} Qc4 {[%emt 0:04:52]} 33. Qe3 {[%emt 0:03:24]} Qc2 {[%emt 0:01:40]} 34. fxg6 {[%emt 0:01:29]} hxg6 {[%emt 0:00:23]} 35. h3 {[%emt 0:01:48]} Qxb2 {[%emt 0:02:27]} 36. Rb8 {[%emt 0:00:29]} a5 {[%emt 0:01:07]} 37. Kh2 {[%emt 0:01:20]} g5 {[%emt 0:04:46]} 38. Qe8 {[%emt 0:00:31]} Qxd4 {[%emt 0:00:24]} 39. Qxf8+ {[%emt 0:00:08]} Kg6 {[%emt 0:00:05]} 40. Qg8+ {[%emt 0:00:00]} Kf5 {[%emt 0:00:00]} 41. Qh7+ {[%emt 0:01:33]} Kf4 {[%emt 0:00:27]} 42. g3+ {[%emt 0:00:23]} Kf3 {[%emt 0:00:10]} 43. Qf5+ {[%emt 0:00:08]} Ke2 {[%emt 0:00:15]} 44. Re8+ {[%emt 0:00:07]} Kd2 {[%emt 0:00:16]} 45. Qf3 {[%emt 0:00:25]} 1-0

[Event "Polish Youth Ekstraliga 2022"]
[Site "Lublin"]
[Date "2022.06.25"]
[Round "1.23"]
[White "Siekanska, Maria"]
[Black "Dylag, Emilia"]
[Result "1-0"]
[ECO "D39"]
[WhiteElo "1964"]
[BlackElo "2022"]
[Annotator "NA RC"]
[PlyCount "59"]
[EventDate "2022.06.24"]
[EventType "team-tourn"]
[EventCountry "POL"]
[SourceTitle "playchess.com"]
[Source "ChessBase"]
[SourceQuality "1"]
[TimeControl "40/5400+30:1800+30"]

1. d4 {[%emt 0:00:01]} Nf6 {[%emt 0:00:08]} 2. c4 {[%emt 0:00:06]} e6 {[%emt 0:00:11]} 3. Nf3 {[%emt 0:00:20]} d5 {[%emt 0:00:14]} 4. Nc3 {[%emt 0:00:20]} Bb4 {[%emt 0:00:26]} 5. Bg5 {[%emt 0:00:22]} dxc4 {[%emt 0:00:43]} 6. e4 {[%emt 0:00:27]} b5 {[%emt 0:00:26]} 7. a4 {[%emt 0:00:36]} c6 {[%emt 0:05:44]} 8. e5 {[%emt 0:01:48]} h6 {[%emt 0:00:24]} 9. exf6 {[%emt 0:00:17]} hxg5 {[%emt 0:00:07]} 10. fxg7 {[%emt 0:00:06]} Rg8 {[%emt 0:00:07]} 11. g3 {[%emt 0:00:50]} Bb7 {[%emt 0:05:41]} 12. Bg2 $1 {[%emt 0:01:45]} ({But not} 12. axb5 cxb5 13. Bg2 g4 $15) 12... Nd7 {[%emt 0:12:25]} 13. h4 {[%emt 0:00:20]} gxh4 {[%emt 0:01:50]} 14. Rxh4 {[%emt 0:00:37]} Qc7 {[%emt 0:09:58]} 15. Kf1 {[%emt 0:04:23]} Bxc3 {[%emt 0:01:07]} 16. bxc3 {[%emt 0:00:13]} a6 {[%emt 0:10:24]} 17. Ng5 {[%emt 0:09:21]} Rxg7 {[%emt 0:05:03]} 18. Qh5 {[%emt 0:02:54]} O-O-O $14 {[%emt 0:03:34]} 19. Rf4 {[%emt 0:03:36]} c5 {[%emt 0:13:24]} 20. Rxf7 {[%emt 0:07:24]} Bxg2+ {[%emt 0:06:55]} 21. Kxg2 {[%emt 0:00:14]} Qc6+ {[%emt 0:01:47]} 22. Kg1 {[%emt 0:01:31]} Rxf7 {[%emt 0:08:13]} 23. Nxf7 {[%emt 0:00:45]} Rf8 {[%emt 0:00:23]} 24. axb5 {[%emt 0:01:04]} axb5 {[%emt 0:00:59]} 25. dxc5 {[%emt 0:01:33]} Nxc5 {[%emt 0:02:40]} 26. Ra8+ {[%emt 0:05:46]} Qxa8 {[%emt 0:00:19]} 27. Qxc5+ {[%emt 0:00:05]} Kb7 {[%emt 0:00:24]} 28. Nd6+ {[%emt 0:00:05]} Ka6 {[%emt 0:00:12]} 29. Qxb5+ {[%emt 0:00:06]} Ka7 {[%emt 0:00:10]} 30. Qa5+ {[%emt 0:00:06]} 1-0

[Event "Polish Youth Ekstraliga 2022"]
[Site "Lublin"]
[Date "2022.06.25"]
[Round "1.24"]
[White "Bandyk, Joanna"]
[Black "Ziobrowska, Maja"]
[Result "0-1"]
[ECO "C58"]
[WhiteElo "1360"]
[BlackElo "1609"]
[Annotator "NA RC"]
[PlyCount "74"]
[EventDate "2022.06.24"]
[EventType "team-tourn"]
[EventCountry "POL"]
[SourceTitle "playchess.com"]
[Source "ChessBase"]
[SourceQuality "1"]
[TimeControl "40/5400+30:1800+30"]

1. e4 e5 2. Nf3 Nc6 3. Bc4 Nf6 4. Ng5 d5 5. exd5 Na5 6. Bb5+ c6 7. dxc6 bxc6 8. Be2 Be7 9. Nc3 O-O 10. O-O h6 11. Nge4 Nd5 12. d3 f5 13. Ng3 Be6 14. Bf3 Qc7 15. Nce2 Rad8 16. b3 Bf6 17. Bxd5 cxd5 18. d4 f4 19. Nh5 Bg5 20. dxe5 Bg4 21. Nhxf4 Bxf4 22. Bxf4 Bxe2 23. Qxe2 Rxf4 24. Rad1 Re4 25. Qd3 Rxe5 26. Rfe1 Nc6 27. Qc3 Rxe1+ 28. Rxe1 Qa5 29. Qe3 d4 30. Qe6+ Kh8 31. Rd1 Qd5 32. Qe2 Qd7 33. Kf1 Re8 34. Qf3 Ne5 35. Qf4 Qb5+ 36. Kg1 Qe2 37. Qxd4 {[%emt 1:33:03]} Nc6 {[%emt 1:45:40]} 0-1

[Event "Polish Youth Ekstraliga 2022"]
[Site "Lublin"]
[Date "2022.06.25"]
[Round "1.25"]
[White "Karolczuk, Iwo"]
[Black "Czernek, Tymon"]
[Result "0-1"]
[ECO "D02"]
[WhiteElo "2319"]
[BlackElo "2199"]
[Annotator "TA"]
[PlyCount "72"]
[EventDate "2022.06.24"]
[EventType "team-tourn"]
[EventCountry "POL"]
[SourceTitle "playchess.com"]
[Source "ChessBase"]
[SourceQuality "1"]
[TimeControl "40/5400+30:1800+30"]

{[%evp 13,72,0,0,0,14,0,4,-13,-6,-39,-19,-25,-8,-48,-35,-41,-43,-152,-132,-138,-137,-139,-147,-154,-105,-123,-133,-162,-153,-165,-117,-108,-115,-112,-118,-133,-90,-170,-168,-178,-168,-165,-167,-169,-172,-212,-205,-323,-310,-375,-363,-541,-501,-560,-376,-878,-871,-843,-825,-29982,-29982]} 1. d4 {[%emt 0:00:07]} d5 {[%emt 0:00:12]} 2. Nf3 {[%emt 0:00:10]} Nf6 {[%emt 0:00:05]} 3. c4 {[%emt 0:00:03]} c6 {[%emt 0:00:04]} 4. Qb3 {[%emt 0:04:49]} dxc4 {[%emt 0:17:46]} 5. Qxc4 {[%emt 0:00:06]} Bf5 {[%emt 0:00:33]} 6. g3 {[%emt 0:03:18]} e6 {[%emt 0:01:37]} 7. Bg2 {[%emt 0:01:15]} Be7 {[%emt 0:00:29]} 8. O-O {[%emt 0:01:31] D23: Queen's Gambit Accepted: 3 Nf3 Nf6 sidelines.} O-O {[%emt 0:00:43]} 9. Rd1 {[%emt 0:15:34]} Nbd7 {[%emt 0:01:03]} 10. Bf4 {[%emt 0:14:19] [#] The position is equal.} Rc8 $146 {[%emt 0:02:53]} ({Predecessor:} 10... Qb6 11. Qc1 c5 12. Nc3 Rac8 13. Be3 h6 14. dxc5 Nxc5 15. Nd4 Bg6 16. Nb3 Nxb3 17. axb3 Qxb3 18. Rxa7 Be4 19. Bxe4 Nxe4 20. Qb1 Nxc3 21. bxc3 {½-½ (21) Vladimirov,Y (2598)-Magem Badals,J (2482) Istanbul 2000}) 11. Ne5 {[%emt 0:07:09]} Nxe5 {[%emt 0:08:07]} 12. Bxe5 {[%emt 0:00:10]} Qb6 {[%emt 0:03:57]} 13. Qc1 {[%emt 0:18:34]} c5 {[%emt 0:05:07]} 14. Nc3 {[%emt 0:01:08]} Ng4 {[%emt 0:03:22] ...f6 is the strong threat.} 15. h3 {[%emt 0:07:21] [#]} (15. e3 $15) 15... Nxf2 $1 $17 {[%emt 0:10:02][%mdl 512]} 16. Kxf2 {[%emt 0:00:12]} f6 {[%emt 0:00:09]} 17. d5 {[%emt 0:03:07][%cal Od5d6] Black must now prevent d6!} fxe5 {[%emt 0:01:14]} 18. Kg1 {[%emt 0:00:06]} c4+ {[%emt 0:04:43]} (18... e4 $142 19. Kh1 Bg6) 19. Kh2 {[%emt 0:00:07]} h6 {[%emt 0:03:35] Black is more active.} 20. h4 {[%emt 0:01:35] Against Bg5} Kh8 {[%emt 0:06:36]} 21. Rf1 {[%emt 0:00:19]} Bg6 {[%emt 0:02:51] This bishop pair is nice.} (21... e4 $19 22. dxe6 Qxe6) 22. Qd2 {[%emt 0:03:39]} Rcd8 {[%emt 0:04:09][%cal Oe5e4]} 23. Rxf8+ {[%emt 0:01:29]} Bxf8 {[%emt 0:00:01]} 24. Rd1 {[%emt 0:00:15]} Bb4 {[%emt 0:06:05]} 25. a3 {[%emt 0:01:32]} (25. Qe1 $17) 25... Bxc3 $19 {[%emt 0:00:37]} 26. Qxc3 {[%emt 0:00:41]} exd5 {[%emt 0:00:04] Hoping for ...Qf2.} 27. Qxe5 {[%emt 0:02:35]} d4 {[%emt 0:02:03]} 28. h5 {[%emt 0:02:06]} Bh7 {[%emt 0:05:08]} ({Inferior is} 28... Bc2 29. Rf1 Qd6 30. Qxd6 Rxd6 31. Bxb7 $17) 29. Qe7 {[%emt 0:09:02]} d3 {[%emt 0:03:55]} 30. exd3 {[%emt 0:00:05]} (30. Rd2 {was the only defense.}) 30... cxd3 {[%emt 0:00:05] And now ...d2 would win.} (30... Rxd3 $2 31. Qf8+ Bg8 32. Rxd3 $18) 31. Rf1 {[%emt 0:00:16] [#] Strongly threatening Rf8+.} Bg8 $1 {[%emt 0:02:11] aiming for ...d2.} ({Worse is} 31... d2 32. Rf8+ Rxf8 33. Qxf8+ Bg8 34. Bd5 Qg1+ 35. Kh3 Qh1+ 36. Bxh1 $11) 32. Be4 {[%emt 0:02:57]} (32. Bxb7 $142 Qxb2+ 33. Kh3) 32... Qxb2+ {[%emt 0:01:48]} 33. Kh3 {[%emt 0:00:04]} Qb6 {[%emt 0:00:44]} 34. Rf8 $2 {[%emt 0:01:04]} (34. Bf3) 34... Rxf8 {[%emt 0:00:47]} 35. Qxf8 {[%emt 0:00:04]} Qe6+ {[%emt 0:00:09]} 36. Qf5 {[%emt 0:01:06]} d2 {[%emt 0:00:13] Weighted Error Value: White=0.68/Black=0.10 (very precise)} 0-1